fUSD/lending_fUSD_20240924
["ID","MTS","AMOUNT","RATE_DAILY","PERIOD"]
[339028687,1727140063962,1000.0,0.00030609,60]
[339028688,1727140067823,194.0,0.00030609,30]
[339028689,1727140068250,194.0,0.00030609,30]
[339028690,1727140068867,194.0,0.00030609,30]
[339028691,1727140069157,200.0,0.00030609,30]
[339028692,1727140069544,188.0,0.00030609,30]
[339028693,1727140069897,200.0,0.00030609,30]
[339028694,1727140070220,188.0,0.00030609,30]
[339028695,1727140070561,647.0,0.00030609,30]
[339028696,1727140071783,647.0,0.00030609,30]
[339028697,1727140073068,261.0,0.00030609,30]
[339028698,1727140075758,1000.0,0.00030609,30]
[339028699,1727140087572,1000.0,0.00030609,30]
[339028700,1727140099326,1000.0,0.00030609,60]
[339028701,1727140111120,1000.0,0.00030609,60]
[339028702,1727140122899,1000.0,0.00030609,30]
[339028703,1727140131163,1000.0,0.00030609,30]
[339028704,1727140131604,1000.0,0.00030609,30]
[339028705,1727140132011,1000.0,0.00030609,30]
[339028706,1727140132433,1000.0,0.00030609,30]
[339028707,1727140132963,1000.0,0.00030609,30]
[339028708,1727140133324,1000.0,0.00030609,30]
[339028709,1727140133751,1000.0,0.00030609,30]
[339028710,1727140134367,1000.0,0.00030609,30]
[339028711,1727140134683,1000.0,0.00030609,30]
[339028712,1727140135004,1000.0,0.00030609,30]
[339028713,1727140135550,1000.0,0.00030609,30]
[339028714,1727140136066,1000.0,0.00030609,30]
[339028715,1727140136431,1000.0,0.00030609,30]
[339028716,1727140136870,1000.0,0.00030609,30]
[339028717,1727140137310,1000.0,0.00030609,30]
[339028718,1727140137856,1000.0,0.00030609,30]
[339028719,1727140138543,1000.0,0.00030609,30]
[339028720,1727140139490,1000.0,0.00030609,30]
[339028721,1727140139990,1000.0,0.00030609,30]
[339028722,1727140140714,1000.0,0.00030609,30]
[339028723,1727140141876,1000.0,0.00030609,30]
[339028724,1727140142323,1000.0,0.00030609,30]
[339028725,1727140142888,1000.0,0.00030609,30]
[339028726,1727140143343,1000.0,0.00030609,30]
[339028727,1727140143837,1000.0,0.00030609,30]
[339028728,1727140144439,1000.0,0.00030609,30]
[339028729,1727140145200,1000.0,0.00030609,30]
[339028730,1727140145604,1000.0,0.00030609,30]
[339028731,1727140146062,1000.0,0.00030609,30]
[339028732,1727140146585,1000.0,0.00030609,30]
[339028733,1727140146613,1000.0,0.00030609,30]
[339028734,1727140147081,1000.0,0.00030609,30]
[339028735,1727140158406,1000.0,0.00030609,30]
[339028736,1727140170171,1000.0,0.00030609,30]
[339028737,1727140181954,1000.0,0.00030609,30]
[339028738,1727140193724,1000.0,0.00030609,60]
[339028739,1727140195232,200.0,0.00030609,30]
[339028740,1727140195599,200.0,0.00030609,30]
[339028741,1727140196490,200.0,0.00030609,30]
[339028742,1727140196968,200.0,0.00030609,30]
[339028743,1727140197347,200.0,0.00030609,30]
[339028744,1727140197936,200.0,0.00030609,30]
[339028745,1727140198273,200.0,0.00030609,30]
[339028746,1727140198624,200.0,0.00030609,30]
[339028747,1727140198998,200.0,0.00030609,30]
[339028748,1727140199699,200.0,0.00030609,30]
[339028749,1727140200365,200.0,0.00030609,30]
[339028750,1727140200723,200.0,0.00030609,30]
[339028751,1727140201107,200.0,0.00030609,30]
[339028752,1727140201848,200.0,0.00030609,30]
[339028753,1727140202168,200.0,0.00030609,30]
[339028754,1727140202987,200.0,0.00030609,30]
[339028755,1727140203600,200.0,0.00030609,30]
[339028756,1727140204368,200.0,0.00030609,30]
[339028757,1727140204715,200.0,0.00030609,30]
[339028758,1727140205200,200.0,0.00030609,30]
[339028759,1727140205539,1000.0,0.00030609,120]
[339028760,1727140205569,200.0,0.00030609,30]
[339028761,1727140206022,200.0,0.00030609,30]
[339028762,1727140206532,200.0,0.00030609,30]
[339028763,1727140207202,200.0,0.00030609,30]
[339028764,1727140208070,200.0,0.00030609,30]
[339028765,1727140208578,200.0,0.00030609,30]
[339028766,1727140209316,200.0,0.00030609,30]
[339028767,1727140209781,200.0,0.00030609,30]
[339028768,1727140210308,200.0,0.00030609,30]
[339028769,1727140210757,200.0,0.00030609,30]
[339028770,1727140211278,200.0,0.00030609,30]
[339028771,1727140211573,200.0,0.00030609,30]
[339028772,1727140211954,200.0,0.00030609,30]
[339028773,1727140212414,200.0,0.00030609,30]
[339028774,1727140212796,200.0,0.00030609,30]
[339028775,1727140213272,200.0,0.00030609,30]
[339028776,1727140213723,200.0,0.00030609,30]
[339028777,1727140214185,200.0,0.00030609,30]
[339028778,1727140214558,200.0,0.00030609,30]
[339028779,1727140215370,200.0,0.00030609,30]
[339028780,1727140215559,200.0,0.00030609,30]
[339028781,1727140215961,200.0,0.00030609,30]
[339028782,1727140216360,200.0,0.00030609,30]
[339028783,1727140216742,200.0,0.00030609,30]
[339028784,1727140217203,200.0,0.00030609,30]
[339028785,1727140217293,1000.0,0.00030609,60]
[339028786,1727140217591,200.0,0.00030609,30]
[339028787,1727140217971,200.0,0.00030609,30]
[339028788,1727140218326,200.0,0.00030609,30]
[339028789,1727140218654,200.0,0.00030609,30]
[339028790,1727140219078,200.0,0.00030609,30]
[339028791,1727140219777,200.0,0.00030609,30]
[339028792,1727140220364,692.4,0.00030609,30]
[339028793,1727140223525,175.14,0.00010959,2]
[339028794,1727140223867,200.0,0.00030609,30]
[339028795,1727140224331,200.0,0.00030609,30]
[339028796,1727140225009,200.0,0.00030609,30]
[339028797,1727140225607,200.0,0.00030609,30]
[339028798,1727140226090,200.0,0.00030609,30]
[339028799,1727140226433,200.0,0.00030609,30]
[339028800,1727140226773,200.0,0.00030609,30]
[339028801,1727140227111,200.0,0.00030609,30]
[339028802,1727140227548,200.0,0.00030609,30]
[339028803,1727140228096,200.0,0.00030609,30]
[339028804,1727140229161,1000.0,0.00030609,60]
[339028814,1727140231535,-412.47514701,0.0001163,2]
[339028815,1727140231545,-250.0,0.00011719,2]
[339028816,1727140231558,-400.0,0.0001173,2]
[339028817,1727140231568,-214.4,0.00011735,2]
[339028818,1727140231577,-250.0,0.00011735,2]
[339028819,1727140231586,-600.0,0.00011744,2]
[339028820,1727140231597,-300.0,0.0001175,2]
[339028821,1727140231607,-11098.05612899,0.00011751,2]
[339028822,1727140231712,-2110.0,0.00011751,2]
[339028824,1727140237692,-1185.34288774,0.00011751,2]
[339028825,1727140237918,-250.0,0.00011751,2]
[339028826,1727140239508,-1483.32098327,0.00011751,2]
[339028827,1727140239520,-251.1,0.00011765,2]
[339028828,1727140239528,-250.0,0.00011765,2]
[339028829,1727140239536,-916.01901673,0.00011813,2]
[339028830,1727140239686,-2525.18,0.00011813,2]
[339028831,1727140239697,-923.6633515,0.00011813,2]
[339028846,1727140240979,1000.0,0.00030609,60]
[339028852,1727140242803,-1097.15763177,0.00011813,2]
[339028853,1727140242813,-164.93,0.000119,2]
[339028854,1727140242822,-999.4,0.0001206,2]
[339028855,1727140242831,-166.56,0.00012445,2]
[339028856,1727140242840,-150.0,0.0001249,2]
[339028857,1727140242850,-1002.49327189,0.00012538,2]
[339028858,1727140242860,-2000.0,0.00012692,2]
[339028859,1727140242869,-500.0,0.00012692,2]
[339028860,1727140242878,-150.0,0.00012693,2]
[339028861,1727140242887,-41096.93281347,0.00012694,2]
[339028862,1727140242899,-6330.636,0.00012694,2]
[339028863,1727140242910,-2724.99528653,0.00012694,2]
[339028864,1727140242919,-155.58550769,0.00012694,2]
[339028865,1727140242928,-189.37442894,0.00012699,2]
[339028866,1727140242938,-300.0,0.000127,3]
[339028867,1727140242947,-300.0,0.000127,2]
[339028868,1727140242956,-156.6716891,0.000127,2]
[339028869,1727140242966,-566.555,0.000127,2]
[339028871,1727140242975,-174.041,0.000127,2]
[339028872,1727140242984,-168.47539267,0.000127,2]
[339028873,1727140242994,-155.58550762,0.00012709,2]
[339028874,1727140243003,-155.58550762,0.00012724,2]
[339028875,1727140243012,-155.58550762,0.00012739,2]
[339028876,1727140243021,-155.58550762,0.00012755,2]
[339028877,1727140243030,-155.58550762,0.0001277,2]
[339028878,1727140243039,-155.58550762,0.00012785,2]
[339028879,1727140243048,-1000.0,0.00012794,2]
[339028880,1727140243057,-1000.0,0.00012794,2]
[339028881,1727140243067,-1064.0,0.00012794,2]
[339028882,1727140243076,-1000.0,0.00012794,2]
[339028883,1727140243085,-1000.0,0.00012794,2]
[339028884,1727140243094,-1000.0,0.00012794,2]
[339028886,1727140243103,-160.0,0.00012794,2]
[339028887,1727140243113,-1000.0,0.00012794,2]
[339028888,1727140243122,-1000.0,0.00012794,2]
[339028889,1727140243131,-1000.0,0.00012794,2]
[339028890,1727140243141,-1000.0,0.00012794,2]
[339028891,1727140243150,-1000.0,0.00012794,2]
[339028892,1727140243159,-1000.0,0.00012794,2]
[339028893,1727140243168,-1087.0,0.00012794,2]
[339028894,1727140243177,-2000.0,0.00012794,2]
[339028895,1727140243186,-200.0,0.00012794,2]
[339028896,1727140243197,-500.0,0.00012794,2]
[339028897,1727140243206,-151.0,0.00012794,2]
[339028898,1727140243216,-500.0,0.00012794,2]
[339028899,1727140243226,-151.0,0.00012794,2]
[339028900,1727140243235,-151.0,0.00012794,2]
[339028901,1727140243245,-151.0,0.00012794,2]
[339028902,1727140243254,-604.79559604,0.00012794,2]
[339028903,1727140243264,-322.671337,0.00012794,2]
[339028904,1727140243274,-322.671337,0.00012794,2]
[339028905,1727140243283,-643.7,0.00012794,2]
[339028906,1727140243293,-538.31,0.00012794,2]
[339028907,1727140243302,-500.0,0.00012794,2]
[339028908,1727140243312,-500.0,0.00012794,2]
[339028909,1727140243321,-500.0,0.00012794,2]
[339028910,1727140243331,-500.0,0.00012794,2]
[339028911,1727140243340,-500.0,0.00012794,2]
[339028912,1727140243349,-500.0,0.00012794,2]
[339028913,1727140243358,-500.0,0.00012794,2]
[339028914,1727140243368,-501.23007764,0.00012794,2]
[339028915,1727140243378,-500.0,0.00012794,2]
[339028916,1727140243387,-536.97547593,0.00012794,2]
[339028917,1727140243396,-500.0,0.00012794,2]
[339028918,1727140243406,-503.28951406,0.00012794,2]
[339028919,1727140243416,-500.0,0.00012794,2]
[339028920,1727140243425,-500.0,0.00012794,2]
[339028921,1727140243434,-500.0,0.00012794,2]
[339028922,1727140243443,-500.0,0.00012794,2]
[339028923,1727140243452,-500.0,0.00012794,2]
[339028924,1727140243462,-501.25541042,0.00012794,2]
[339028925,1727140243472,-420.98112548,0.00012794,2]
[339028926,1727140243481,-500.0,0.00012796,2]
[339028927,1727140243490,-500.0,0.00012796,2]
[339028928,1727140243500,-500.0,0.00012796,2]
[339028929,1727140243509,-542.58702086,0.00012796,2]
[339028930,1727140243522,-500.0,0.00012796,2]
[339028931,1727140243536,-500.0,0.00012796,2]
[339028932,1727140243545,-500.0,0.00012796,2]
[339028933,1727140243556,-500.0,0.00012796,2]
[339028934,1727140243565,-500.0,0.00012796,2]
[339028935,1727140243575,-500.0,0.00012796,2]
[339028936,1727140243585,-500.0,0.00012796,2]
[339028937,1727140243595,-500.0,0.00012796,2]
[339028938,1727140243605,-500.0,0.00012796,2]
[339028939,1727140243615,-500.0,0.00012796,2]
[339028940,1727140243625,-500.0,0.00012796,2]
[339028941,1727140243635,-589.76,0.00012796,2]
[339028942,1727140243644,-500.0,0.00012796,2]
[339028943,1727140243654,-500.0,0.00012796,2]
[339028944,1727140243663,-500.0,0.00012796,2]
[339028945,1727140243673,-500.0,0.00012796,2]
[339028946,1727140243682,-3158.67,0.00012796,2]
[339028947,1727140243692,-500.0,0.00012796,2]
[339028948,1727140243702,-500.0,0.00012796,2]
[339028949,1727140243711,-590.17,0.00012796,2]
[339028950,1727140243721,-500.0,0.00012796,2]
[339028951,1727140243731,-500.0,0.00012796,2]
[339028952,1727140243740,-585.65,0.00012796,2]
[339028953,1727140243750,-513.66,0.00012796,2]
[339028954,1727140243761,-500.0,0.00012796,2]
[339028955,1727140243771,-500.0,0.00012796,2]
[339028956,1727140243780,-500.0,0.00012796,2]
[339028957,1727140243791,-500.0,0.00012796,2]
[339028958,1727140243801,-500.0,0.00012796,2]
[339028959,1727140243810,-500.0,0.00012796,2]
[339028960,1727140243820,-500.0,0.00012796,2]
[339028961,1727140243829,-500.0,0.00012796,2]
[339028962,1727140243838,-261.569,0.00012796,2]
[339028963,1727140243848,-500.0,0.00012796,2]
[339028964,1727140243857,-500.0,0.00012796,2]
[339028965,1727140243866,-305.335,0.00012797,2]
[339028966,1727140243876,-383.98214227,0.00012797,2]
[339028967,1727140243886,-500.0,0.00012797,2]
[339028968,1727140243895,-500.0,0.00012797,2]
[339028969,1727140243904,-500.0,0.00012797,2]
[339028970,1727140243914,-500.0,0.00012797,2]
[339028971,1727140243924,-500.0,0.00012797,2]
[339028972,1727140243934,-500.0,0.00012797,2]
[339028973,1727140243943,-500.0,0.00012797,2]
[339028974,1727140243953,-500.0,0.00012797,2]
[339028975,1727140243963,-500.0,0.00012797,2]
[339028976,1727140243972,-500.0,0.00012797,2]
[339028977,1727140243982,-500.0,0.00012797,2]
[339028978,1727140243992,-428.30234381,0.00012797,2]
[339028985,1727140252858,1000.0,0.00030609,30]
[339028986,1727140264561,1000.0,0.00030609,60]
[339028987,1727140275200,150.0,0.00030609,30]
[339028988,1727140275885,150.0,0.00030609,30]
[339028989,1727140276318,1000.0,0.00030609,30]
[339028990,1727140276346,288.561408,0.00030609,30]
[339028991,1727140288125,1000.0,0.00030609,60]
[339028992,1727140300092,1000.0,0.00030609,60]
[339028993,1727140311762,1000.0,0.00030609,60]
[339028994,1727140344044,150.0,0.00030609,30]
[339028995,1727140427475,979.06,9.926e-05,2]
[339028996,1727140461922,930.0,0.00030609,30]
[339028997,1727140462197,3101.0,0.00030609,30]
[339028998,1727140547894,2663.0,0.00030609,120]
[339028999,1727140556140,150.1,0.00030609,40]
[339029000,1727140558052,156.148778,0.00030609,40]
[339029001,1727140573706,150.0,0.00030609,30]
[339029002,1727140574226,150.0,0.00030609,30]
[339029003,1727140574642,288.561408,0.00030609,30]
[339029004,1727140588603,2000.0,0.00030609,30]
[339029005,1727140643718,150.0,0.00030609,30]
[339029006,1727140674549,194.0,0.00030609,30]
[339029007,1727140675032,194.0,0.00030609,30]
[339029008,1727140675648,194.0,0.00030609,30]
[339029009,1727140676207,200.0,0.00030609,30]
[339029010,1727140676799,188.0,0.00030609,30]
[339029011,1727140677469,200.0,0.00030609,30]
[339029012,1727140678019,188.0,0.00030609,30]
[339029013,1727140678577,194.0,0.00030609,30]
[339029014,1727140718829,1000.0,0.00030609,30]
[339029015,1727140719550,1000.0,0.00030609,30]
[339029016,1727140720078,1000.0,0.00030609,30]
[339029017,1727140720585,1000.0,0.00030609,30]
[339029018,1727140721114,1000.0,0.00030609,30]
[339029019,1727140722531,1000.0,0.00030609,30]
[339029020,1727140722983,1000.0,0.00030609,30]
[339029021,1727140723817,1000.0,0.00030609,30]
[339029022,1727140724352,1000.0,0.00030609,30]
[339029023,1727140724939,1000.0,0.00030609,30]
[339029024,1727140725396,1000.0,0.00030609,30]
[339029025,1727140725801,1000.0,0.00030609,30]
[339029026,1727140726785,1000.0,0.00030609,30]
[339029027,1727140727274,1000.0,0.00030609,30]
[339029028,1727140727747,1000.0,0.00030609,30]
[339029029,1727140728370,1000.0,0.00030609,30]
[339029030,1727140728895,1000.0,0.00030609,30]
[339029031,1727140729345,1000.0,0.00030609,30]
[339029032,1727140729846,1000.0,0.00030609,30]
[339029033,1727140730361,1000.0,0.00030609,30]
[339029034,1727140730788,1000.0,0.00030609,30]
[339029035,1727140731340,1000.0,0.00030609,30]
[339029036,1727140731788,1000.0,0.00030609,30]
[339029037,1727140732183,1000.0,0.00030609,30]
[339029038,1727140732726,1776.216255,0.00030609,30]
[339029039,1727140776047,287.59,0.00010959,2]
[339029041,1727140870124,150.0,0.00030609,30]
[339029042,1727140870672,150.0,0.00030609,30]
[339029043,1727140871218,288.561408,0.00030609,30]
[339029045,1727140941999,150.0,0.00030609,30]
[339029046,1727140947460,160.0,0.00030609,30]
[339029047,1727141016261,968.04,9.852e-05,2]
[339029048,1727141062592,930.0,0.00030609,30]
[339029049,1727141108020,3064.6460631,0.00030609,90]
[339029050,1727141108380,3051.39792258,0.00030609,30]
[339029051,1727141110602,490.61530551,0.00030609,30]
[339029052,1727141111731,366.67384593,0.00030609,30]
[339029053,1727141111764,159.09111186,0.00030609,30]
[339029054,1727141111820,532.41155885,0.00030609,60]
[339029055,1727141112062,2169.88378763,0.00030609,120]
[339029056,1727141113305,246.37189762,0.00030609,30]
[339029057,1727141114261,841.12262143,0.00030609,30]
[339029058,1727141115592,1000.0,0.00030609,30]
[339029059,1727141115808,2660.68251539,0.00030609,30]
[339029060,1727141115846,2279.22942749,0.00030609,30]
[339029061,1727141116480,2704.88608253,0.00030609,120]
[339029062,1727141119975,1039.61942855,0.00030609,120]
[339029063,1727141121054,1931.74420976,0.00030609,30]
[339029064,1727141123326,709.78468932,0.00030609,30]
[339029065,1727141125236,195.95448792,0.00030609,60]
[339029066,1727141126316,1187.52339646,0.00030609,30]
[339029067,1727141131405,1953.34113161,0.00030609,120]
[339029068,1727141131557,1519.6186044,0.00030609,120]
[339029078,1727141136272,254.61721719,0.00030609,30]
[339029079,1727141139494,2500.0,0.00030609,30]
[339029080,1727141141143,344.59431453,0.00030609,120]
[339029081,1727141143305,723.73436097,0.00030609,120]
[339029082,1727141143693,3006.35354618,0.00030609,120]
[339029083,1727141149799,823.8891201,0.00030609,30]
[339029084,1727141152113,1200.0,0.00030609,120]
[339029085,1727141154504,3000.0,0.00030609,30]
[339029086,1727141158112,831.76930344,0.00030609,30]
[339029087,1727141159154,521.18615413,0.00030609,35]
[339029088,1727141160941,242.33767943,0.00030609,120]
[339029089,1727141163572,256.17261037,0.00030609,120]
[339029090,1727141167908,895.93416598,0.00030609,30]
[339029091,1727141168526,483.09135376,0.00030609,120]
[339029092,1727141170122,2236.60278562,0.00030609,60]
[339029093,1727141171148,150.0,0.00030609,30]
[339029094,1727141171626,700.04168563,0.00030609,31]
[339029095,1727141173837,200.52841436,0.00030609,30]
[339029096,1727141174481,925.57901009,0.00030609,30]
[339029097,1727141175113,960.4495576,0.00030609,120]
[339029098,1727141177318,199.10418958,0.00030609,120]
[339029099,1727141182979,1801.28522742,0.00030609,120]
[339029100,1727141184216,223.35920543,0.00030609,30]
[339029101,1727141187338,952.94406082,0.00030609,120]
[339029102,1727141188357,796.08391887,0.00030609,120]
[339029103,1727141190488,338.29624995,0.00030609,30]
[339029104,1727141194442,1410.31914182,0.00030609,120]
[339029105,1727141214400,209.63268198,0.00030609,120]
[339029106,1727141221544,731.99141814,0.00030609,120]
[339029107,1727141222023,1800.5100932,0.00030609,120]
[339029108,1727141222051,1163.66754185,0.00030609,120]
[339029109,1727141223037,320.75391507,0.00030609,120]
[339029110,1727141224455,1713.21778112,0.00030609,120]
[339029116,1727141243566,222.00582111,0.00030609,31]
[339029129,1727141250910,3052.19231404,0.00030609,120]
[339029139,1727141258633,2857.8959075,0.00030609,30]
[339029140,1727141259425,2547.63185616,0.00030609,120]
[339029141,1727141260273,283.70942103,0.00030609,120]
[339029142,1727141266049,2319.19473863,0.00030609,120]
[339029143,1727141266433,194.0,0.00030609,30]
[339029144,1727141266824,194.0,0.00030609,30]
[339029145,1727141267233,194.0,0.00030609,30]
[339029146,1727141267471,2956.42390424,0.00030609,30]
[339029147,1727141267520,1034.16919038,0.00030609,120]
[339029148,1727141267631,200.0,0.00030609,30]
[339029149,1727141267962,2755.64581953,0.00030609,120]
[339029150,1727141267991,253.0,0.00030609,30]
[339029151,1727141268561,1657.72630865,0.00030609,120]
[339029152,1727141268590,329.72732704,0.00030609,120]
[339029153,1727141268811,855.78811667,0.00030609,120]
[339029154,1727141272255,498.76009732,0.00030609,30]
[339029155,1727141273368,3238.26807288,0.00030609,120]
[339029156,1727141282920,910.75816591,0.00030609,120]
[339029157,1727141284349,200.0,0.00030609,120]
[339029158,1727141289032,953.38863686,0.00030609,120]
[339029159,1727141289602,851.37436764,0.00030609,30]
[339029160,1727141290182,539.70883326,0.00030609,120]
[339029161,1727141308062,956.18649503,0.00030609,120]
[339029162,1727141308340,679.42474221,0.00030609,120]
[339029163,1727141308942,413.91235191,0.00030609,120]
[339029164,1727141310011,2820.96044437,0.00030609,30]
[339029165,1727141310419,196.07726298,0.00030609,30]
[339029166,1727141311894,1227.87538828,0.00030609,120]
[339029167,1727141312462,1943.62805182,0.00030609,120]
[339029168,1727141313498,1000.0,0.00030609,30]
[339029169,1727141314161,1000.0,0.00030609,30]
[339029170,1727141314449,1000.0,0.00030609,30]
[339029171,1727141314478,1432.94352924,0.00030609,120]
[339029172,1727141314507,576.1739767,0.00030609,120]
[339029173,1727141314554,763.52738709,0.00030609,30]
[339029174,1727141314684,256.82269372,0.00030609,30]
[339029175,1727141314957,2586.34159081,0.00030609,30]
[339029176,1727141315113,652.80613398,0.00030609,120]
[339029177,1727141315148,1148.93387887,0.00030609,120]
[339029178,1727141315282,289.80777694,0.00030609,31]
[339029179,1727141315309,1702.18383926,0.00030609,30]
[339029180,1727141315475,1000.0,0.00030609,30]
[339029181,1727141315508,2235.04704304,0.00030609,30]
[339029182,1727141315737,575.4949861,0.00030609,120]
[339029183,1727141316013,1000.0,0.00030609,30]
[339029184,1727141316948,264.35724607,0.00030609,120]
[339029185,1727141317124,1409.12682164,0.00030609,30]
[339029186,1727141317162,1000.0,0.00030609,30]
[339029187,1727141317516,2014.33320043,0.00030609,120]
[339029188,1727141317866,1000.0,0.00030609,30]
[339029189,1727141317897,351.10670962,0.00030609,120]
[339029190,1727141317934,1101.95757388,0.00030609,30]
[339029191,1727141318037,1073.77246938,0.00030609,30]
[339029192,1727141318309,1000.0,0.00030609,30]
[339029193,1727141318572,646.68397226,0.00030609,120]
[339029194,1727141318693,1000.0,0.00030609,30]
[339029195,1727141318720,756.0,0.00030609,120]
[339029196,1727141318801,290.71182393,0.00030609,30]
[339029197,1727141319177,1000.0,0.00030609,30]
[339029198,1727141319255,2114.88170168,0.00030609,30]
[339029199,1727141319606,1070.76167711,0.00030609,120]
[339029200,1727141319634,1000.0,0.00030609,30]
[339029201,1727141319741,1763.0024499,0.00030609,120]
[339029202,1727141320123,1960.360424,0.00030609,30]
[339029203,1727141321820,266.0,0.00030609,30]
[339029204,1727141321850,935.26971632,0.00030609,120]
[339029205,1727141322348,1212.16091723,0.00030609,30]
[339029206,1727141322377,171.27394077,0.00030609,120]
[339029207,1727141322580,3033.04825923,0.00030609,120]
[339029208,1727141322966,201.34576357,0.00030609,120]
[339029215,1727141378560,1050.0,0.00011,2]
[339029216,1727141404931,220000.0,0.00030609,30]
[339029219,1727141429991,345.7408,0.00030609,30]
[339029229,1727141431928,-250.0,0.00011724,2]
[339029230,1727141431937,-30.56667432,0.00011727,2]
[339029231,1727141431948,-219.43332568,0.00011727,2]
[339029232,1727141431958,-250.0,0.00011732,2]
[339029233,1727141431967,-164.93,0.00011739,2]
[339029234,1727141431976,-1000.0,0.00011741,2]
[339029235,1727141431986,-189.39,0.00011766,2]
[339029236,1727141431995,-33.23609002,0.00011857,2]
[339029237,1727141432008,-133.89390998,0.00011857,2]
[339029238,1727141432018,-262.58626174,0.00011902,2]
[339029241,1727141438740,-92.87373826,0.00011902,2]
[339029242,1727141438749,-244.15822575,0.00012116,2]
[339029245,1727141440076,-723.88177425,0.00012116,2]
[339029246,1727141440085,-402.22862393,0.0001241,2]
[339029247,1727141440095,-167.29,0.00012445,2]
[339029248,1727141440105,-282.82918862,0.000126,2]
[339029249,1727141440115,-2000.0,0.00012695,2]
[339029250,1727141440127,-500.0,0.00012695,2]
[339029251,1727141440137,-300.0,0.00012695,2]
[339029252,1727141440147,-4118.3362,0.00012696,2]
[339029253,1727141440157,-150.0,0.00012696,2]
[339029254,1727141440166,-3076.0268,0.00012697,2]
[339029255,1727141440176,-22969.20796989,0.00012697,2]
[339029256,1727141440229,-1034.02237981,0.00012697,2]
[339029259,1727141440241,-10218.0,0.00012697,2]
[339029323,1727141443241,-7013.4600503,0.00012697,2]
[339029324,1727141443250,-4453.86425092,0.00012698,2]
[339029325,1727141443261,-223.0508,0.00012698,2]
[339029326,1727141443270,-1284.3801,0.00012698,2]
[339029327,1727141443279,-194.39956312,0.00012699,2]
[339029328,1727141443289,-322.34537067,0.00012699,2]
[339029329,1727141443299,-565.089,0.000127,2]
[339029330,1727141443308,-156.6716891,0.000127,2]
[339029331,1727141443317,-4453.86425092,0.00012709,2]
[339029332,1727141443327,-593.322,0.00012711,2]
[339029333,1727141443336,-174.041,0.00012711,2]
[339029334,1727141443345,-4453.86425092,0.00012721,2]
[339029335,1727141443355,-4453.86425092,0.00012732,2]
[339029336,1727141443364,-666.12389189,0.00012743,2]
[339029337,1727141443374,-4453.86425092,0.00012743,2]
[339029338,1727141443383,-322.34537067,0.0001275,2]
[339029339,1727141443392,-4453.86425092,0.00012755,2]
[339029340,1727141443401,-4453.86425092,0.00012766,2]
[339029341,1727141443411,-172.37016429,0.0001277,2]
[339029342,1727141443420,-4453.86425092,0.00012777,2]
[339029343,1727141443429,-5363.19929152,0.0001278,2]
[339029344,1727141443438,-4453.86425092,0.00012789,2]
[339029345,1727141443447,-807.0,0.0001279,2]
[339029346,1727141443456,-3398.07,0.0001279,2]